[Event "XX Sants Open 2018"]
[Site "Cotxeres de Sants"]
[Date "2018.08.18"]
[Round "2"]
[White "Martinez Alcantara, Jose Eduardo"]
[Black "Noboa, Kevin"]
[Result "1-0"]
[ECO "A20"]
[WhiteElo "2561"]
[BlackElo "2256"]
[Annotator "RC"]
[PlyCount "79"]
[EventDate "2018.08.17"]
[EventType "swiss"]
[EventCountry "ESP"]
[SourceTitle "playchess.com"]
[Source "ChessBase"]
[SourceQuality "1"]
[TimeControl "40/5400+30:1800+30"]

1. c4 {[%emt 0:00:00]} e5 {[%emt 0:00:00]} 2. g3 {[%emt 0:00:00]} Nf6 {[%emt 0:00:00]} 3. Bg2 {[%emt 0:00:00]} Bc5 {[%emt 0:00:34]} 4. Nc3 {[%emt 0:00:00]} Nc6 {[%emt 0:01:29]} 5. e3 {[%emt 0:00:26]} d6 {[%emt 0:02:08]} 6. Nge2 {[%emt 0:00:27]} a6 {[%emt 0:00:23]} 7. h3 {[%emt 0:00:26]} Ba7 {[%emt 0:00:44]} 8. O-O {[%emt 0:02:48]} O-O {[%emt 0:00:30]} 9. b3 {[%emt 0:00:57]} Bd7 {[%emt 0:04:59]} 10. Bb2 {[%emt 0:00:18]} Rb8 {[%emt 0:01:02]} 11. Rc1 {[%emt 0:00:05]} Ne7 {[%emt 0:10:31]} 12. d3 {[%emt 0:04:17]} Ng6 {[%emt 0:18:23]} 13. Qd2 {[%emt 0:01:55]} Re8 {[%emt 0:11:19]} 14. Ne4 {[%emt 0:04:59]} Nh5 {[%emt 0:09:12]} 15. N4c3 {[%emt 0:09:53]} b5 {[%emt 0:06:28]} 16. Nd5 {[%emt 0:02:01]} c6 {[%emt 0:13:55]} 17. Nb4 {[%emt 0:01:56]} Qa5 {[%emt 0:00:11]} 18. Rfd1 {[%emt 0:05:03]} Ne7 {[%emt 0:03:23]} 19. g4 {[%emt 0:11:55]} bxc4 {[%emt 0:04:12]} 20. Bc3 {[%emt 0:00:26]} Qd8 {[%emt 0:03:08]} 21. dxc4 {[%emt 0:01:11]} Nf6 {[%emt 0:07:18]} 22. Qxd6 {[%emt 0:00:37]} Qc8 {[%emt 0:00:39]} 23. Nd3 {[%emt 0:00:49]} Ng6 {[%emt 0:00:31]} 24. Nxe5 {[%emt 0:02:43]} Re6 {[%emt 0:00:19]} 25. Nxg6 {[%emt 0:00:07]} hxg6 {[%emt 0:00:39]} 26. Qd3 {[%emt 0:00:13]} Re7 {[%emt 0:00:29]} 27. Ng3 {[%emt 0:00:56]} Be6 {[%emt 0:00:30]} 28. Bxf6 {[%emt 0:00:23]} gxf6 {[%emt 0:00:27]} 29. Ne4 {[%emt 0:00:04]} f5 {[%emt 0:00:29]} 30. Nf6+ {[%emt 0:00:07]} Kf8 {[%emt 0:00:24]} 31. Qc3 {[%emt 0:00:22]} Rc7 {[%emt 0:00:41]} 32. Qe5 {[%emt 0:01:07]} fxg4 {[%emt 0:00:25]} 33. hxg4 {[%emt 0:00:07]} Bb6 {[%emt 0:00:31]} 34. g5 {[%emt 0:00:27]} a5 {[%emt 0:00:32]} 35. Qh2 {[%emt 0:00:17]} Bc5 {[%emt 0:00:32]} 36. Ne4 {[%emt 0:00:15]} Ba3 {[%emt 0:00:31]} 37. Nd6 {[%emt 0:01:32]} Bxd6 {[%emt 0:00:27]} 38. Rxd6 {[%emt 0:00:05]} Ke7 {[%emt 0:00:33]} 39. Rcd1 {[%emt 0:00:09]} a4 {[%emt 0:00:30]} 40. Qe5 {[%emt 0:00:00]} 1-0

[Event "XX Sants Open 2018"]
[Site "Cotxeres de Sants"]
[Date "2018.08.18"]
[Round "2"]
[White "Sanz Ogaya, Mario"]
[Black "Ribera Veganzones, Josep Maria"]
[Result "1/2-1/2"]
[ECO "B23"]
[WhiteElo "1947"]
[BlackElo "1792"]
[Annotator "NA RC"]
[PlyCount "88"]
[EventDate "2018.08.17"]
[EventType "swiss"]
[EventCountry "ESP"]
[SourceTitle "playchess.com"]
[Source "ChessBase"]
[SourceQuality "1"]
[TimeControl "40/5400+30:1800+30"]

1. e4 {[%emt 0:04:46]} c5 {[%emt 0:00:00]} 2. Nc3 {[%emt 0:00:12]} Nc6 {[%emt 0:00:19]} 3. Nge2 {[%emt 0:00:20]} Nf6 {[%emt 0:02:23]} 4. g3 {[%emt 0:00:30]} g6 {[%emt 0:00:19]} 5. Bg2 {[%emt 0:00:24]} Bg7 {[%emt 0:00:23]} 6. O-O {[%emt 0:00:36]} d6 {[%emt 0:00:41]} 7. d3 {[%emt 0:00:32]} O-O {[%emt 0:00:32]} 8. h3 {[%emt 0:00:38]} Bd7 {[%emt 0:01:51] LiveBook: 13 Games} 9. Be3 {[%emt 0:01:26]} Rb8 {[%emt 0:01:57]} 10. Qd2 {[%emt 0:02:13]} b5 {[%emt 0:06:06]} 11. Bh6 {[%emt 0:03:21]} b4 {[%emt 0:03:25]} 12. Nd1 {[%emt 0:00:17]} Nd4 {[%emt 0:04:10]} 13. Bxg7 {[%emt 0:03:53]} Kxg7 $11 {[%emt 0:00:56]} 14. Ne3 {[%emt 0:03:32]} a5 {[%emt 0:03:17]} 15. f4 {[%emt 0:09:00]} h5 {[%emt 0:08:41]} 16. e5 {[%emt 0:17:17]} Nh7 {[%emt 0:07:40]} 17. c3 {[%emt 0:05:53]} Nxe2+ {[%emt 0:04:17]} 18. Qxe2 {[%emt 0:00:08]} Qc8 {[%emt 0:02:27]} 19. Kh2 {[%emt 0:01:48]} dxe5 {[%emt 0:02:11]} 20. fxe5 {[%emt 0:06:06]} Ng5 {[%emt 0:02:03]} 21. h4 {[%emt 0:02:19]} Ne6 {[%emt 0:01:29]} 22. Bf3 {[%emt 0:01:47]} Rh8 {[%emt 0:07:03]} 23. Rad1 {[%emt 0:01:42]} Bb5 {[%emt 0:08:23]} 24. Qf2 {[%emt 0:01:50]} Nd8 {[%emt 0:07:02]} 25. Nd5 {[%emt 0:05:29]} Rb7 {[%emt 0:04:53]} 26. Rfe1 {[%emt 0:06:41]} Bc6 {[%emt 0:02:40]} 27. d4 {[%emt 0:02:32]} bxc3 {[%emt 0:01:17]} 28. bxc3 {[%emt 0:00:37]} cxd4 {[%emt 0:02:36]} 29. cxd4 {[%emt 0:01:31]} Qa8 {[%emt 0:02:16]} 30. Rd2 {[%emt 0:01:37]} Ne6 {[%emt 0:01:35]} 31. Be4 {[%emt 0:03:28]} Rd8 {[%emt 0:02:37]} 32. Nc3 {[%emt 0:02:54]} Bxe4 {[%emt 0:00:12]} 33. Nxe4 {[%emt 0:02:01]} Rb4 {[%emt 0:03:35]} 34. Ng5 {[%emt 0:02:52]} Nxg5 {[%emt 0:01:13]} 35. hxg5 {[%emt 0:00:05]} Qd5 {[%emt 0:00:06]} 36. Red1 {[%emt 0:03:45]} Rc8 {[%emt 0:01:29]} 37. Qg2 {[%emt 0:01:09]} Rd8 {[%emt 0:02:54]} 38. Qxd5 {[%emt 0:00:44]} Rxd5 {[%emt 0:00:06]} 39. Kg2 {[%emt 0:01:15]} f6 {[%emt 0:02:44]} 40. gxf6+ {[%emt 0:00:00]} exf6 {[%emt 0:00:00]} 41. exf6+ {[%emt 0:12:24]} Kxf6 {[%emt 0:00:16]} 42. Rf1+ {[%emt 0:00:45]} Ke6 {[%emt 0:02:48]} 43. Rf4 g5 44. Re4+ Kf5 1/2-1/2

[Event "XX Sants Open 2018"]
[Site "Cotxeres de Sants"]
[Date "2018.08.18"]
[Round "2"]
[White "Poyato Duran, David"]
[Black "Walter Travella, German"]
[Result "0-1"]
[ECO "A40"]
[WhiteElo "1799"]
[BlackElo "1930"]
[Annotator "NA RC"]
[PlyCount "72"]
[EventDate "2018.08.17"]
[EventType "swiss"]
[EventCountry "ESP"]
[SourceTitle "playchess.com"]
[Source "ChessBase"]
[SourceQuality "1"]
[TimeControl "40/5400+30:1800+30"]

1. d4 b6 2. e4 Bb7 3. Bd3 Nf6 4. Nc3 e6 5. Nf3 Bb4 6. Bg5 h6 7. Bxf6 Qxf6 {LiveBook: 64 Games} 8. O-O Bxc3 9. bxc3 c5 10. e5 Qf4 11. Qd2 g5 12. Qxf4 gxf4 13. Nd2 Ke7 14. Ne4 $17 (14. dxc5 $11 {bleibt in der Remisbreite.} Rg8 15. g3) 14... c4 15. Nd6 cxd3 16. Nxb7 dxc2 17. Nd6 f6 18. Rac1 fxe5 19. dxe5 Nc6 20. Rfe1 Rhg8 21. Nc4 f3 22. g3 Rg5 23. Rxc2 b5 24. Nd2 Nxe5 25. Re3 Rf5 26. Rb2 a6 27. Rb4 Rc8 28. Rh4 d5 29. Rxh6 b4 30. cxb4 Rc1+ 31. Nf1 d4 32. Ra3 d3 33. Rxa6 Nc6 34. g4 Rxf1+ 35. Kxf1 d2 36. Rh7+ Rf7 0-1

[Event "XX Sants Open 2018"]
[Site "Cotxeres de Sants"]
[Date "2018.08.18"]
[Round "2"]
[White "Collazo Gibanel, Sergio"]
[Black "Marza Vendrell, Conrado"]
[Result "0-1"]
[ECO "B25"]
[WhiteElo "1788"]
[BlackElo "1925"]
[Annotator "NA RC"]
[PlyCount "78"]
[EventDate "2018.08.17"]
[EventType "swiss"]
[EventCountry "ESP"]
[SourceTitle "playchess.com"]
[Source "ChessBase"]
[SourceQuality "1"]
[TimeControl "40/5400+30:1800+30"]

1. e4 c5 2. Nc3 Nc6 3. g3 g6 4. Bg2 Bg7 5. d3 d6 6. Nge2 e6 7. O-O Nge7 8. f4 O-O 9. g4 f5 10. g5 d5 11. Ng3 d4 12. Nce2 Rb8 $15 13. Bd2 b5 14. Rb1 Qc7 15. b3 Ba6 16. a3 c4 17. Nh5 gxh5 18. Ng3 h4 19. Nh5 Bh8 20. Qe2 Qd7 21. bxc4 bxc4 22. Rxb8 Nxb8 23. Re1 c3 24. Bc1 Nbc6 25. a4 Bc8 26. Ba3 Rf7 27. Qf2 Ng6 28. exf5 exf5 29. Bd5 Qxd5 30. Re8+ Rf8 31. Bxf8 Nxf8 32. Rxc8 Qe6 33. Ra8 Qe3 34. Nf6+ Bxf6 35. gxf6 Kf7 36. Qxe3 dxe3 37. Rc8 Nd4 38. Kf1 Nfe6 39. Rc4 Nxc2 0-1

[Event "XX Sants Open 2018"]
[Site "Cotxeres de Sants"]
[Date "2018.08.18"]
[Round "2"]
[White "Grasa Solanas, Oscar"]
[Black "Sanchez De Medina Vilagrasa, En"]
[Result "1-0"]
[ECO "A39"]
[WhiteElo "1646"]
[BlackElo "1508"]
[Annotator "NA RC"]
[PlyCount "77"]
[EventDate "2018.08.17"]
[EventType "swiss"]
[EventCountry "ESP"]
[SourceTitle "playchess.com"]
[Source "ChessBase"]
[SourceQuality "1"]
[TimeControl "40/5400+30:1800+30"]

1. c4 c5 2. Nc3 Nf6 3. g3 g6 4. Bg2 Bg7 5. Nf3 Nc6 {LiveBook: 1674 Games} 6. O-O O-O $14 7. d4 cxd4 8. Nxd4 Nxd4 9. Qxd4 d6 10. Qd1 Qc7 11. b3 Bd7 12. Rb1 Qc8 13. Re1 Bh3 14. Bh1 Rb8 15. Bb2 h5 16. Nd5 Nxd5 17. Bxg7 Kxg7 18. Qxd5 Rh8 19. Qd4+ f6 20. Qxa7 h4 21. Qe3 e5 22. Red1 hxg3 23. fxg3 Qc7 24. Rb2 Be6 25. Rbd2 Rhd8 26. Bd5 Bf5 27. Be4 Bh3 28. Bg2 Be6 29. Qf2 b6 30. e3 f5 31. Rd3 e4 32. Rd4 Rd7 33. Rf1 Rh8 34. Bxe4 Rf8 35. Bg2 Rdf7 36. Qd2 Rd8 37. Rd1 Rfd7 38. Qb2 Qc5 39. Rd5+ 1-0

[Event "XX Sants Open 2018"]
[Site "Cotxeres de Sants"]
[Date "2018.08.18"]
[Round "2"]
[White "Martinez Torras, Pol"]
[Black "Ribera Veganzones, Serni"]
[Result "1-0"]
[ECO "A26"]
[WhiteElo "1642"]
[BlackElo "1496"]
[Annotator "NA RC"]
[PlyCount "69"]
[EventDate "2018.08.17"]
[EventType "swiss"]
[EventCountry "ESP"]
[SourceTitle "playchess.com"]
[Source "ChessBase"]
[SourceQuality "1"]
[TimeControl "40/5400+30:1800+30"]

1. c4 e5 2. g3 Nc6 3. Bg2 g6 4. Nc3 Bg7 5. d3 {LiveBook: 1043 Games} d6 6. Rb1 f5 $11 7. Bd2 Nf6 8. b4 O-O 9. b5 Ne7 10. Nf3 h6 11. O-O g5 12. Ne1 f4 13. Nc2 Qe8 14. Nb4 Qh5 15. e3 Bg4 16. f3 Bd7 17. exf4 gxf4 18. gxf4 exf4 19. Bxf4 Qh4 20. Bd2 Nh5 21. Qe1 Bd4+ 22. Kh1 Qf6 23. Nbd5 Nxd5 24. Nxd5 Qg7 25. Nxc7 Rac8 26. Ne6 Bxe6 27. Qxe6+ Kh8 28. Qxh6+ Qxh6 29. Bxh6 Rf6 30. Bg5 Rg6 31. f4 b6 32. Rbe1 Rcg8 33. Bd5 R8g7 34. Re8+ Kh7 35. Be4 1-0

[Event "XX Sants Open 2018"]
[Site "Cotxeres de Sants"]
[Date "2018.08.18"]
[Round "2"]
[White "Fontela Hidalgo, Victor"]
[Black "Romero Funieles, Rafael"]
[Result "0-1"]
[ECO "C00"]
[WhiteElo "1510"]
[BlackElo "1642"]
[Annotator "NA RC"]
[PlyCount "46"]
[EventDate "2018.08.17"]
[EventType "swiss"]
[EventCountry "ESP"]
[SourceTitle "playchess.com"]
[Source "ChessBase"]
[SourceQuality "1"]
[TimeControl "40/5400+30:1800+30"]

1. e4 e6 {[%emt 0:02:10]} 2. d4 {[%emt 0:00:00]} d6 {[%emt 0:00:32]} 3. f4 {[%emt 0:00:00]} Nf6 {[%emt 0:01:11]} 4. Nc3 {[%emt 0:00:06]} Be7 {[%emt 0:01:09]} 5. Nf3 {[%emt 0:00:34]} h6 {[%emt 0:01:13]} 6. Bc4 {[%emt 0:00:36]} c6 {[%emt 0:02:05]} 7. Qe2 $14 {[%emt 0:01:40]} a6 {[%emt 0:09:15]} 8. a4 {[%emt 0:01:18]} Qa5 {[%emt 0:05:06]} 9. Bd2 {[%emt 0:03:45]} Qb6 {[%emt 0:02:36]} 10. O-O {[%emt 0:06:35]} Nbd7 {[%emt 0:04:00]} 11. e5 {[%emt 0:12:06]} dxe5 {[%emt 0:05:56]} 12. fxe5 {[%emt 0:00:42]} Nd5 {[%emt 0:01:47]} 13. Ne4 {[%emt 0:03:53]} O-O {[%emt 0:09:14]} 14. Qf2 {[%emt 0:08:00]} Qxb2 {[%emt 0:07:30]} 15. Bd3 {[%emt 0:01:48]} Qb6 {[%emt 0:01:10]} 16. Qg3 {[%emt 0:01:02]} Kh8 {[%emt 0:01:04]} 17. Qh3 {[%emt 0:08:45]} f5 {[%emt 0:05:34]} 18. Ng3 {[%emt 0:07:47]} Nxe5 {[%emt 0:03:12]} 19. Nxe5 {[%emt 0:09:36]} Qxd4+ {[%emt 0:00:10]} 20. Kh1 {[%emt 0:00:19]} Qxe5 {[%emt 0:00:23]} 21. Rae1 {[%emt 0:01:23]} Qf6 {[%emt 0:02:50]} 22. c4 {[%emt 0:05:29]} Nb4 {[%emt 0:05:26]} 23. Bg5 {[%emt 0:03:15]} Qxg5 {[%emt 0:01:01]} 0-1

[Event "XX Sants Open 2018"]
[Site "Cotxeres de Sants"]
[Date "2018.08.19"]
[Round "3"]
[White "Illescas Cordoba, Miguel"]
[Black "Cavalieri, Riccardo"]
[Result "1-0"]
[ECO "A16"]
[WhiteElo "2605"]
[BlackElo "2109"]
[Annotator "ChessBase"]
[PlyCount "67"]
[EventDate "2018.08.17"]
[EventType "swiss"]
[EventCountry "ESP"]
[SourceTitle "playchess.com"]
[Source "ChessBase"]
[SourceQuality "1"]
[TimeControl "40/5400+30:1800+30"]

1. c4 {[%emt 0:00:00]} Nf6 {[%emt 0:00:00]} 2. Nc3 {[%emt 0:00:00]} d5 {[%emt 0:00:00]} 3. cxd5 {[%emt 0:00:00]} Nxd5 {[%emt 0:00:03]} 4. g3 {[%emt 0:00:00]} g6 {[%emt 0:01:53]} 5. Bg2 {[%emt 0:00:00]} Nxc3 {[%emt 0:01:38]} 6. bxc3 {[%emt 0:00:00]} Bg7 {[%emt 0:00:31]} 7. Rb1 {[%emt 0:01:23]} O-O {[%emt 0:00:10]} 8. h4 {[%emt 0:06:11]} c6 {[%emt 0:11:32]} 9. Qa4 {[%emt 0:10:10]} Nd7 {[%emt 0:06:19]} 10. h5 {[%emt 0:00:13]} e5 {[%emt 0:02:43]} 11. hxg6 {[%emt 0:00:28]} hxg6 {[%emt 0:00:49]} 12. d3 {[%emt 0:04:50]} Nb6 {[%emt 0:01:52]} 13. Qc2 {[%emt 0:04:52]} Re8 {[%emt 0:17:08]} 14. Nh3 {[%emt 0:09:11]} Bf5 {[%emt 0:11:13]} 15. Ng5 {[%emt 0:03:26]} Bf6 {[%emt 0:04:12]} 16. Ne4 {[%emt 0:04:56]} Bxe4 {[%emt 0:00:52]} 17. Bxe4 {[%emt 0:00:03]} Bg5 {[%emt 0:01:05]} 18. f4 {[%emt 0:08:30]} exf4 {[%emt 0:05:26]} 19. gxf4 {[%emt 0:00:06]} Bh4+ {[%emt 0:00:25]} 20. Kf1 {[%emt 0:00:05]} Kg7 {[%emt 0:03:05]} 21. c4 {[%emt 0:04:16]} Rb8 {[%emt 0:01:59]} 22. f5 {[%emt 0:07:51]} Nd7 {[%emt 0:15:46]} 23. Qd2 {[%emt 0:00:14]} Rh8 {[%emt 0:03:52]} 24. fxg6 {[%emt 0:04:20]} Qf6+ {[%emt 0:01:29]} 25. Qf4 {[%emt 0:00:54]} Bg3 {[%emt 0:04:19]} 26. Qxf6+ {[%emt 0:01:10]} Nxf6 {[%emt 0:00:02]} 27. Rxh8 {[%emt 0:00:29]} Rxh8 {[%emt 0:00:30]} 28. Rxb7 {[%emt 0:02:22]} Nxe4 {[%emt 0:00:15]} 29. Bb2+ {[%emt 0:00:08]} Nf6 {[%emt 0:01:55]} 30. Rxf7+ {[%emt 0:00:05]} Kxg6 {[%emt 0:00:06]} 31. Rxf6+ {[%emt 0:00:02]} Kg5 {[%emt 0:00:25]} 32. Rf3 {[%emt 0:00:30]} Rb8 {[%emt 0:00:24]} 33. Rxg3+ {[%emt 0:00:06]} Kf4 {[%emt 0:00:33]} 34. Rf3+ {[%emt 0:00:05]} 1-0

[Event "XX Sants Open 2018"]
[Site "Cotxeres de Sants"]
[Date "2018.08.19"]
[Round "3"]
[White "Esipenko, Andrey"]
[Black "Gual Pascual, Antonio"]
[Result "1-0"]
[ECO "A40"]
[WhiteElo "2589"]
[BlackElo "2394"]
[Annotator "RC"]
[PlyCount "65"]
[EventDate "2018.08.17"]
[EventType "swiss"]
[EventCountry "ESP"]
[SourceTitle "playchess.com"]
[Source "ChessBase"]
[SourceQuality "1"]
[TimeControl "40/5400+30:1800+30"]

1. d4 {[%emt 0:00:00]} g6 {[%emt 0:00:00]} 2. Nf3 {[%emt 0:00:08]} Bg7 {[%emt 0:00:00]} 3. g3 {[%emt 0:00:09]} d6 {[%emt 0:00:06]} 4. Bg2 {[%emt 0:00:15]} Nd7 {[%emt 0:02:49]} 5. O-O {[%emt 0:00:26]} e5 {[%emt 0:00:31]} 6. c4 {[%emt 0:00:09]} Ne7 {[%emt 0:00:41]} 7. Nc3 {[%emt 0:01:35]} O-O {[%emt 0:03:46]} 8. dxe5 {[%emt 0:00:16]} dxe5 {[%emt 0:00:11]} 9. Qc2 {[%emt 0:00:05]} Nf5 {[%emt 0:00:22]} 10. Bg5 {[%emt 0:00:15]} f6 {[%emt 0:06:24]} 11. Bd2 {[%emt 0:00:13]} Nc5 {[%emt 0:00:49]} 12. Rad1 {[%emt 0:00:08]} Ne6 {[%emt 0:11:00]} 13. e3 {[%emt 0:00:05]} Qe8 {[%emt 0:00:25]} 14. Bc1 {[%emt 0:00:47]} Ne7 {[%emt 0:06:25]} 15. b3 {[%emt 0:23:47]} f5 {[%emt 0:04:27]} 16. Bb2 {[%emt 0:10:42]} g5 {[%emt 0:01:49]} 17. Nd5 {[%emt 0:00:36]} Ng6 {[%emt 0:01:18]} 18. Nxg5 {[%emt 0:11:09]} Nxg5 {[%emt 0:00:26]} 19. Nxc7 {[%emt 0:00:05]} Qe7 {[%emt 0:04:35]} 20. Nxa8 {[%emt 0:00:51]} Be6 {[%emt 0:03:40]} 21. f4 {[%emt 0:01:56]} Nf7 {[%emt 0:01:02]} 22. e4 {[%emt 0:08:02]} Nh6 {[%emt 0:01:34]} 23. fxe5 {[%emt 0:01:56]} f4 {[%emt 0:03:22]} 24. Qd2 {[%emt 0:12:06]} fxg3 {[%emt 0:04:09]} 25. Rxf8+ {[%emt 0:01:40]} Nxf8 {[%emt 0:00:34]} 26. Qd8 {[%emt 0:03:46]} Qf7 {[%emt 0:04:01]} 27. Rf1 {[%emt 0:00:31]} Qh5 {[%emt 0:00:13]} 28. hxg3 {[%emt 0:00:11]} Nf7 {[%emt 0:00:56]} 29. Qd1 {[%emt 0:02:55]} Qg5 {[%emt 0:01:32]} 30. Nc7 {[%emt 0:00:34]} Qe3+ {[%emt 0:11:49]} 31. Rf2 {[%emt 0:00:09]} Qxg3 {[%emt 0:04:06]} 32. Nxe6 {[%emt 0:00:31]} Nxe6 {[%emt 0:00:05]} 33. Rxf7 {[%emt 0:00:27]} 1-0

[Event "XX Sants Open 2018"]
[Site "Cotxeres de Sants"]
[Date "2018.08.19"]
[Round "3"]
[White "Vaibhav, Suri"]
[Black "Veinberg, Nimrod"]
[Result "1-0"]
[ECO "C50"]
[WhiteElo "2561"]
[BlackElo "2389"]
[Annotator "ChessBase"]
[PlyCount "49"]
[EventDate "2018.08.17"]
[EventType "swiss"]
[EventCountry "ESP"]
[SourceTitle "playchess.com"]
[Source "ChessBase"]
[SourceQuality "1"]
[TimeControl "40/5400+30:1800+30"]

1. e4 {[%emt 0:00:00]} e5 {[%emt 0:07:49]} 2. Nf3 {[%emt 0:00:13]} Nc6 {[%emt 0:00:17]} 3. Bc4 {[%emt 0:00:07]} Bc5 {[%emt 0:00:13]} 4. d3 {[%emt 0:00:16]} Nf6 {[%emt 0:00:13]} 5. O-O {[%emt 0:00:07]} d6 {[%emt 0:00:23]} 6. c3 {[%emt 0:00:08]} h6 {[%emt 0:01:54]} 7. Re1 {[%emt 0:00:56]} a6 {[%emt 0:01:26]} 8. a4 {[%emt 0:00:35]} Ba7 {[%emt 0:00:14]} 9. Nbd2 {[%emt 0:00:42]} g5 {[%emt 0:02:35]} 10. b4 {[%emt 0:05:29]} Ne7 {[%emt 0:12:59]} 11. Nf1 {[%emt 0:13:02]} Ng6 {[%emt 0:00:30]} 12. Be3 {[%emt 0:00:39]} Bxe3 {[%emt 0:04:21]} 13. Nxe3 {[%emt 0:01:34]} a5 {[%emt 0:00:36]} 14. bxa5 {[%emt 0:09:41]} Rxa5 {[%emt 0:01:01]} 15. Nd2 {[%emt 0:00:28]} O-O {[%emt 0:06:52]} 16. d4 {[%emt 0:01:36]} Re8 {[%emt 0:14:01]} 17. Qb3 {[%emt 0:07:14]} Qe7 {[%emt 0:00:16]} 18. Nf5 {[%emt 0:05:20]} Qf8 {[%emt 0:00:35]} 19. Bxf7+ {[%emt 0:00:21]} Kh7 {[%emt 0:00:46]} 20. Bxe8 {[%emt 0:01:52]} Qxe8 {[%emt 0:00:21]} 21. Nc4 {[%emt 0:14:36]} Ra7 {[%emt 0:00:29]} 22. dxe5 {[%emt 0:03:54]} dxe5 {[%emt 0:00:50]} 23. a5 {[%emt 0:01:46]} Be6 {[%emt 0:02:20]} 24. Qb4 {[%emt 0:01:06]} Qc6 {[%emt 0:00:14]} 25. Nxe5 {[%emt 0:02:36]} 1-0

[Event "XX Sants Open 2018"]
[Site "Cotxeres de Sants"]
[Date "2018.08.19"]
[Round "3"]
[White "Peralta, Fernando"]
[Black "Lavrov, Maxim"]
[Result "1-0"]
[ECO "E73"]
[WhiteElo "2556"]
[BlackElo "2384"]
[Annotator "ChessBase"]
[PlyCount "63"]
[EventDate "2018.08.17"]
[EventType "swiss"]
[EventCountry "ESP"]
[SourceTitle "playchess.com"]
[Source "ChessBase"]
[SourceQuality "1"]
[TimeControl "40/5400+30:1800+30"]

1. d4 {[%emt 0:00:05]} Nf6 {[%emt 0:00:00]} 2. c4 {[%emt 0:00:06]} g6 {[%emt 0:00:00]} 3. Nc3 {[%emt 0:00:07]} Bg7 {[%emt 0:00:08]} 4. e4 {[%emt 0:00:16]} d6 {[%emt 0:00:15]} 5. Be2 {[%emt 0:00:07]} O-O {[%emt 0:00:17]} 6. Be3 {[%emt 0:00:08]} e5 {[%emt 0:00:32]} 7. d5 {[%emt 0:00:07]} c6 {[%emt 0:01:59]} 8. Nf3 {[%emt 0:00:53]} cxd5 {[%emt 0:01:47]} 9. cxd5 {[%emt 0:00:09]} Nh5 {[%emt 0:00:12]} 10. Nd2 {[%emt 0:13:06]} Nf4 {[%emt 0:04:15]} 11. Bf1 {[%emt 0:00:07]} Na6 {[%emt 0:23:19]} 12. g3 {[%emt 0:02:12]} Nh5 {[%emt 0:03:23]} 13. Be2 {[%emt 0:01:44]} Bd7 {[%emt 0:08:28]} 14. a3 {[%emt 0:05:49]} Nf6 {[%emt 0:12:40]} 15. g4 {[%emt 0:01:08]} Ne8 {[%emt 0:01:44]} 16. h4 {[%emt 0:01:57]} f5 {[%emt 0:01:02]} 17. gxf5 {[%emt 0:00:52]} gxf5 {[%emt 0:00:07]} 18. exf5 {[%emt 0:00:18]} Bxf5 {[%emt 0:00:24]} 19. Nde4 {[%emt 0:02:29]} Nf6 {[%emt 0:01:21]} 20. Ng3 {[%emt 0:02:10]} Qd7 {[%emt 0:07:36]} 21. Rc1 {[%emt 0:18:17]} Bg4 {[%emt 0:04:32]} 22. h5 {[%emt 0:02:26]} Bxe2 {[%emt 0:02:19]} 23. Qxe2 {[%emt 0:00:07]} Qg4 {[%emt 0:04:33]} 24. Rg1 {[%emt 0:03:20]} Qxe2+ {[%emt 0:02:28]} 25. Kxe2 {[%emt 0:00:35]} Rf7 {[%emt 0:09:39]} 26. Nf5 {[%emt 0:06:41]} Kh8 {[%emt 0:00:42]} 27. Nxd6 {[%emt 0:00:44]} Rd7 {[%emt 0:00:29]} 28. h6 {[%emt 0:00:17]} Bf8 {[%emt 0:01:19]} 29. Nde4 {[%emt 0:00:25]} Nh5 {[%emt 0:03:41]} 30. d6 {[%emt 0:06:11]} Bxd6 {[%emt 0:03:04]} 31. Rcd1 {[%emt 0:01:54]} Rad8 {[%emt 0:00:47]} 32. Rg5 {[%emt 0:01:11]} 1-0

[Event "XX Sants Open 2018"]
[Site "Cotxeres de Sants"]
[Date "2018.08.19"]
[Round "3"]
[White "Walter Travella, German"]
[Black "Marani, Luca"]
[Result "0-1"]
[ECO "C65"]
[WhiteElo "1930"]
[BlackElo "1837"]
[Annotator "NA"]
[PlyCount "104"]
[EventDate "2018.08.17"]
[EventType "swiss"]
[EventCountry "ESP"]
[SourceTitle "playchess.com"]
[Source "ChessBase"]
[SourceQuality "1"]
[TimeControl "40/5400+30:1800+30"]

1. e4 {[%emt 0:00:00]} e5 {[%emt 0:00:00]} 2. Nf3 {[%emt 0:00:00]} Nc6 {[%emt 0:00:00]} 3. Bb5 {[%emt 0:00:07]} Bc5 {[%emt 0:00:00]} 4. O-O {[%emt 0:00:21]} Nf6 {[%emt 0:00:06]} 5. c3 {[%emt 0:03:20]} Nxe4 {[%emt 0:00:05]} 6. d4 {[%emt 0:00:21]} exd4 {[%emt 0:00:12]} 7. cxd4 {[%emt 0:00:13]} Bb6 {[%emt 0:00:22]} 8. Re1 {[%emt 0:03:23]} d5 {[%emt 0:00:28]} 9. Ng5 {[%emt 0:01:45]} O-O {[%emt 0:03:44]} 10. Nxe4 {[%emt 0:01:07]} dxe4 {[%emt 0:01:15]} 11. Bxc6 {[%emt 0:03:25]} bxc6 {[%emt 0:01:29]} 12. Rxe4 {[%emt 0:00:40]} Bf5 {[%emt 0:10:13]} 13. Rf4 {[%emt 0:00:58]} Qd7 {[%emt 0:06:44]} 14. Nc3 {[%emt 0:04:58]} Rfe8 {[%emt 0:03:16]} 15. g4 {[%emt 0:05:02]} Bg6 {[%emt 0:03:59]} 16. Be3 {[%emt 0:01:28]} Rad8 {[%emt 0:06:25]} 17. h4 {[%emt 0:08:01]} h6 {[%emt 0:03:14]} 18. Qf3 {[%emt 0:02:05]} Qe6 {[%emt 0:28:51]} 19. Rd1 {[%emt 0:07:36]} Rd7 {[%emt 0:10:23]} 20. d5 {[%emt 0:04:18]} cxd5 {[%emt 0:02:00]} 21. Nxd5 {[%emt 0:17:04]} Bxe3 {[%emt 0:09:38]} 22. Qxe3 {[%emt 0:06:02]} c6 {[%emt 0:05:49]} 23. Nc3 {[%emt 0:05:16]} Qxe3 {[%emt 0:01:12]} 24. fxe3 {[%emt 0:00:15]} Rxd1+ {[%emt 0:00:47]} 25. Nxd1 {[%emt 0:00:16]} Bc2 {[%emt 0:00:14]} 26. Nf2 {[%emt 0:00:31]} Rxe3 {[%emt 0:00:15]} 27. Rc4 {[%emt 0:00:50]} Bb1 {[%emt 0:00:37]} 28. Rxc6 {[%emt 0:01:18]} Re1+ {[%emt 0:00:17]} 29. Kg2 {[%emt 0:02:17]} Re2 {[%emt 0:00:26]} 30. Rc8+ {[%emt 0:00:44]} Kh7 {[%emt 0:00:06]} 31. Rc7 {[%emt 0:00:18]} a6 {[%emt 0:00:28]} 32. Rxf7 {[%emt 0:03:33]} Bxa2 {[%emt 0:00:07]} 33. Ra7 {[%emt 0:00:24]} Bc4 {[%emt 0:00:13]} 34. Rc7 {[%emt 0:02:28]} Bd5+ {[%emt 0:00:50]} 35. Kg3 {[%emt 0:00:44]} Rxb2 {[%emt 0:00:08]} 36. h5 {[%emt 0:01:04]} Rb3+ {[%emt 0:00:24]} 37. Kf4 {[%emt 0:02:48]} Rb7 {[%emt 0:01:03]} 38. Rc5 {[%emt 0:02:48]} Rb5 {[%emt 0:00:30]} 39. Rc7 {[%emt 0:01:35]} Rb8 {[%emt 0:02:17]} 40. Nd3 {[%emt 0:00:00]} a5 {[%emt 0:00:00]} 41. Nc5 {[%emt 0:04:51]} Rf8+ {[%emt 0:05:45]} 42. Ke5 {[%emt 0:00:47]} Rf7 {[%emt 0:00:57]} 43. Rc8 {[%emt 0:01:05]} Bf3 {[%emt 0:01:48]} 44. Ne6 {[%emt 0:01:06]} Re7 {[%emt 0:02:16]} 45. Rc4 {[%emt 0:03:55]} Bd1 {[%emt 0:02:07]} 46. Rc5 {[%emt 0:08:07]} Bxg4 {[%emt 0:03:20]} 47. Rxa5 {[%emt 0:02:22]} Rxe6+ {[%emt 0:00:10]} 48. Kf4 {[%emt 0:00:09]} Bd1 {[%emt 0:02:14]} 49. Rd5 {[%emt 0:00:43]} Rf6+ {[%emt 0:00:44]} 50. Kg3 {[%emt 0:00:24]} Bb3 {[%emt 0:02:46]} 51. Rb5 {[%emt 0:00:58]} Be6 {[%emt 0:00:38]} 52. Ra5 {[%emt 0:01:47]} Rf5 0-1